Workbook

Sheet College Worksheet
A1: Preliminary for 2023-25 Project Requests
A2: CAPITAL ANALYSIS MODEL (CAM) GENERATED SPACE
A3: DirectLine inventory data from July 12, 2021 | K3: Warning: do not use before ~
A4: COLLEGE: | B4: Bellevue | K4: College breaks out assignable areas by CAM category for their projects on the Committed Changes tab and any other changes planned prior to 2029.
A5: TYPE: | B5: =VLOOKUP(B4,'College Name Lookup'!E1:F36,2,0) -> Community College | K5: College verfies assignaable area by CAM category on the Inventory tab.
A7: All FTE * | B7: FALL 2019 | C7: FALL 2029 | D7: Growth | E7: Percent | F7: FTE/Year
A8: Academic | B8: =VLOOKUP(CONCATENATE($B$4," ",$A8),'FTE Lookup'!$B$11:$L$115,3,0) -> 6970.560279 | C8: =VLOOKUP(CONCATENATE($B$4," ",$A8),'FTE Lookup'!$B$11:$L$115,6,0) -> 7512 | D8: =C8-B8 -> 541.439721 | E8: =IF(B8=0,0,(C8/B8)-1) -> 0.07767520821 | F8: =D8/10 -> 54.1439721
A9: Vocational | B9: =VLOOKUP(CONCATENATE($B$4," ",$A9),'FTE Lookup'!$B$11:$L$115,3,0) -> 2275.984482 | C9: =VLOOKUP(CONCATENATE($B$4," ",$A9),'FTE Lookup'!$B$11:$L$115,6,0) -> 2453 | D9: =C9-B9 -> 177.015518 | E9: =IF(B9=0,0,(C9/B9)-1) -> 0.07777536244 | F9: =D9/10 -> 17.7015518
A10: Basic Skills/Dev Ed | B10: =VLOOKUP(CONCATENATE($B$4," ",$A10),'FTE Lookup'!$B$11:$L$115,3,0) -> 1246.305412 | C10: =VLOOKUP(CONCATENATE($B$4," ",$A10),'FTE Lookup'!$B$11:$L$115,6,0) -> 1343 | D10: =C10-B10 -> 96.694588 | E10: =IF(B10=0,0,(C10/B10)-1) -> 0.07758498605 | F10: =D10/10 -> 9.6694588
A11: TOTAL | B11: =SUM(B8:B10) -> 10492.85017 | C11: =SUM(C8:C10) -> 11308 | D11: =C11-B11 -> 815.149827 | E11: =IF(B11=0,0,(C11/B11)-1) -> 0.07768621619 | F11: =D11/10 -> 81.5149827
A13: Type 1 FTE | B13: FALL 2019 | C13: FALL 2029 | D13: Growth | E13: Percent | F13: FTE/Year
A14: Academic | B14: =VLOOKUP(CONCATENATE($B$4," ",$A14),'FTE Lookup'!$B$11:$L$115,4,0) -> 4784.095546 | C14: =VLOOKUP(CONCATENATE($B$4," ",$A14),'FTE Lookup'!$B$11:$L$115,7,0) -> 5156 | D14: =C14-B14 -> 371.904454 | E14: =IF(B14=0,0,(C14/B14)-1) -> 0.07773767276 | F14: =D14/10 -> 37.1904454
A15: Vocational | B15: =VLOOKUP(CONCATENATE($B$4," ",$A15),'FTE Lookup'!$B$11:$L$115,4,0) -> 1113.05225 | C15: =VLOOKUP(CONCATENATE($B$4," ",$A15),'FTE Lookup'!$B$11:$L$115,7,0) -> 1200 | D15: =C15-B15 -> 86.94775 | E15: =IF(B15=0,0,(C15/B15)-1) -> 0.07811650352 | F15: =D15/10 -> 8.694775
A16: Basic Skills/Dev Ed | B16: =VLOOKUP(CONCATENATE($B$4," ",$A16),'FTE Lookup'!$B$11:$L$115,4,0) -> 890.905757 | C16: =VLOOKUP(CONCATENATE($B$4," ",$A16),'FTE Lookup'!$B$11:$L$115,7,0) -> 960 | D16: =C16-B16 -> 69.094243 | E16: =IF(B16=0,0,(C16/B16)-1) -> 0.07755505277 | F16: =D16/10 -> 6.9094243
A17: TOTAL | B17: =SUM(B14:B16) -> 6788.053553 | C17: =SUM(C14:C16) -> 7316 | D17: =C17-B17 -> 527.946447 | E17: =IF(B17=0,0,(C17/B17)-1) -> 0.07777582231 | F17: =D17/10 -> 52.7946447
A19: Type 2 FTE | B19: FALL 2019 | C19: FALL 2029 | D19: Growth | E19: Percent | F19: FTE/Year
A20: Academic | B20: =VLOOKUP(CONCATENATE($B$4," ",$A20),'FTE Lookup'!$B$11:$L$115,5,0) -> 6527.560635 | C20: =VLOOKUP(CONCATENATE($B$4," ",$A20),'FTE Lookup'!$B$11:$L$115,8,0) -> 7035 | D20: =C20-B20 -> 507.439365 | E20: =IF(B20=0,0,(C20/B20)-1) -> 0.07773797799 | F20: =D20/10 -> 50.7439365
A21: Vocational | B21: =VLOOKUP(CONCATENATE($B$4," ",$A21),'FTE Lookup'!$B$11:$L$115,5,0) -> 1780.318204 | C21: =VLOOKUP(CONCATENATE($B$4," ",$A21),'FTE Lookup'!$B$11:$L$115,8,0) -> 1919 | D21: =C21-B21 -> 138.681796 | E21: =IF(B21=0,0,(C21/B21)-1) -> 0.07789719596 | F21: =D21/10 -> 13.8681796
A22: Basic Skills/Dev Ed | B22: =VLOOKUP(CONCATENATE($B$4," ",$A22),'FTE Lookup'!$B$11:$L$115,5,0) -> 957.105688 | C22: =VLOOKUP(CONCATENATE($B$4," ",$A22),'FTE Lookup'!$B$11:$L$115,8,0) -> 1031 | D22: =C22-B22 -> 73.894312 | E22: =IF(B22=0,0,(C22/B22)-1) -> 0.07720601071 | F22: =D22/10 -> 7.3894312
A23: TOTAL | B23: =SUM(B20:B22) -> 9264.984527 | C23: =SUM(C20:C22) -> 9985 | D23: =C23-B23 -> 720.015473 | E23: =IF(B23=0,0,(C23/B23)-1) -> 0.07771361851 | F23: =D23/10 -> 72.0015473
A25: * All funding sources, all ages, all intents (excluding community service), all enrollments (excluding DOC)
A26: Type 1 = Day On-Campus (excludes Online)
A27: Type 2 = Day On-Campus + Online
D29: 2021 | E29: COMMITTED | F29: 2029 | G29: 2024 | H29: 2024 | I29: 2024 | J29: 2024 | K29: 2029 | L29: 2023-25 | N29: SHORTAGE AS %
D30: SPACE | E30: CHANGES | F30: SPACE | G30: ACADEMIC | H30: VOCATIONAL | I30: BASIC SKILLS | J30: ONE TIME | K30: CAM | L30: SPACE DEFICITS | N30: OF 2023-25 CAM
A31: TYPE OF SPACE | B31: FAE CODING | C31: FTE TYPE | D31: AVAILABLE | E31: 2016-26 | F31: AVAILABLE | G31: ALLOWANCE | H31: ALLOWANCE | I31: ALLOWANCE | J31: ALLOWANCE | K31: ALLOWANCE | L31: SHORTAGE | M31: OVERAGE | N31: ALLOWANCE
A32: GEN. CLASSROOM | B32: A1 | C32: 1 | D32: =VLOOKUP($B$4,Inventory!$C$8:$AJ$43,2,0) -> 100627 | F32: =SUM(D32:E32) -> 100627 | G32: =('CAM Allowances'!$D$8*MIN($C$14,1000))+('CAM Allowances'!$E$8*($C$14-MIN($C$14,1000))) -> 63934.4 | H32: =('CAM Allowances'!$F$8*MIN($C$15,1000))+('CAM Allowances'!$G$8*($C$15-MIN($C$15,1000))) -> 9000 | K32: =SUM(G32:J32) -> 72934.4 | L32: =IF(K32>F32,K32-F32,0) -> 0 | M32: =IF(K32<F32,F32-K32,0) -> 27692.6 | N32: =IF(K32=0,0,L32/K32) -> 0
A33: BASIC SKILLS LABS (open) | B33: A2 | C33: 2 | D33: =VLOOKUP($B$4,Inventory!$C$8:$AJ$43,3,0) -> 14065 | F33: =SUM(D33:E33) -> 14065 | I33: =('CAM Allowances'!$H$9*MIN($C$22,1000))+('CAM Allowances'!$I$9*($C$22-MIN($C$22,1000))) -> 28455.6 | K33: =SUM(G33:J33) -> 28455.6 | L33: 14390.6 | M33: =IF(K33<F33,F33-K33,0) -> 0 | N33: =IF(K33=0,0,L33/K33) -> 0.5057211937
A34: SCIENCE LABS. | B34: B1 | C34: 1 | D34: =VLOOKUP($B$4,Inventory!$C$8:$AJ$43,4,0) -> 38806 | F34: 38806 | G34: =('CAM Allowances'!$D$10*MIN($C$14,1000))+('CAM Allowances'!$E$10*($C$14-MIN($C$14,1000))) -> 30936 | H34: =('CAM Allowances'!$F$10*MIN($C$14,1000))+('CAM Allowances'!$G$10*($C$14-MIN($C$14,1000))) -> 18046 | K34: 48982 | L34: 10176 | M34: 0 | N34: 0.2077497856
A35: COMPUTER LABS. (open) | B35: B2,B4,B5 | C35: 2 | D35: =VLOOKUP($B$4,Inventory!$C$8:$AJ$43,5,0)+VLOOKUP($B$4,Inventory!$C$8:$AJ$43,7,0)+VLOOKUP($B$4,Inventory!$C$8:$AJ$43,8,0) -> 27141 | F35: 27141 | G35: =('CAM Allowances'!$D$11*MIN($C$20,1000))+('CAM Allowances'!$E$11*($C$20-MIN($C$20,1000))) -> 22512 | H35: =('CAM Allowances'!$F$11*MIN($C$20,1000))+('CAM Allowances'!$G$11*($C$20-MIN($C$20,1000))) -> 22512 | I35: =('CAM Allowances'!$H$11*MIN($C$20,1000))+('CAM Allowances'!$I$11*($C$20-MIN($C$20,1000))) -> 22512 | K35: 67536 | L35: 40395 | M35: 0 | N35: 0.5981254442
A36: ART | B36: C1 | C36: 2 | D36: =VLOOKUP($B$4,Inventory!$C$8:$AJ$43,9,0) -> 9064 | F36: 9064 | J36: =IF($B$5="Community College",6000," ") -> 6000 | K36: 6000 | L36: 0 | M36: 3064 | N36: 0
A37: MUSIC | B37: C2 | C37: 2 | D37: =VLOOKUP($B$4,Inventory!$C$8:$AJ$43,10,0) -> 9909 | F37: 9909 | J37: =IF($B$5="Community College",4000," ") -> 4000 | K37: 4000 | L37: 0 | M37: 5909 | N37: 0
A38: DRAMA | B38: C3 | C38: 2 | D38: =VLOOKUP($B$4,Inventory!$C$8:$AJ$43,11,0) -> 11805 | F38: 11805 | J38: =IF($B$5="Community College",5000," ") -> 5000 | K38: 5000 | L38: 0 | M38: 6805 | N38: 0
A39: VOCATIONAL SPACE | B39: B3,D1,D2 | C39: N/A | F39: 0 | K39: 0 | L39: 0 | M39: 0 | N39: 0
A40: Subtotal Instruction | D40: =SUM(D32:D39) -> 211417 | E40: =SUM(E32:E39) -> 0 | F40: =SUM(F32:F39) -> 211417 | K40: =SUM(K32:K39) -> 232908 | L40: =SUM(L32:L39) -> 64961.6 | M40: =SUM(M32:M39) -> 43470.6 | N40: 0.2789152799
A42: AUDITORIUM | B42: C4 | C42: 2 | D42: =VLOOKUP($B$4,Inventory!$C$8:$AJ$43,12,0) -> 2502 | F42: =SUM(D42:E42) -> 2502 | J42: =9000 -> 9000 | K42: =SUM(G42:J42) -> 9000 | L42: =IF(K42>F42,K42-F42,0) -> 6498 | M42: =IF(K42<F42,F42-K42,0) -> 0 | N42: =IF(K42=0,0,L42/K42) -> 0.722
A43: LIBRARY/LRC | B43: E1 | C43: 2 | D43: =VLOOKUP($B$4,Inventory!$C$8:$AJ$43,15,0) -> 50125 | F43: =SUM(D43:E43) -> 50125 | G43: =('CAM Allowances'!$D$16*MIN($C$20,1000))+('CAM Allowances'!$E$16*($C$20-MIN($C$20,1000))) -> 68097.5 | H43: =('CAM Allowances'!$F$16*MIN($C$21,1000))+('CAM Allowances'!$G$16*($C$21-MIN($C$21,1000))) -> 24611.5 | I43: =('CAM Allowances'!$H$16*MIN($C$22,1000))+('CAM Allowances'!$I$16*($C$22-MIN($C$22,1000))) -> 17063.5 | K43: =SUM(G43:J43) -> 109772.5 | L43: =IF(K43>F43,K43-F43,0) -> 59647.5 | M43: =IF(K43<F43,F43-K43,0) -> 0 | N43: =IF(K43=0,0,L43/K43) -> 0.5433737958
A44: PHYS. EDUCATION | B44: H3 | C44: 2 | D44: =VLOOKUP($B$4,Inventory!$C$8:$AJ$43,21,0) -> 38327 | F44: =SUM(D44:E44) -> 38327 | G44: =('CAM Allowances'!$D$15*MIN($C$20,500))+('CAM Allowances'!$E$15*($C$20-MIN($C$20,500))) -> 78350 | K44: =SUM(G44:J44) -> 78350 | L44: =IF(K44>F44,K44-F44,0) -> 40023 | M44: =IF(K44<F44,F44-K44,0) -> 0 | N44: =IF(K44=0,0,L44/K44) -> 0.5108232291
A45: FACULTY OFFICE | B45: F1 | C45: 2 | D45: =VLOOKUP($B$4,Inventory!$C$8:$AJ$43,16,0) -> 51697 | F45: =SUM(D45:E45) -> 51697 | G45: =('CAM Allowances'!$D$17*MIN($C$20,1000))+('CAM Allowances'!$E$17*($C$20-MIN($C$20,1000))) -> 56983.5 | H45: =('CAM Allowances'!$F$17*MIN($C$21,1000))+('CAM Allowances'!$G$17*($C$21-MIN($C$21,1000))) -> 20725.2 | I45: =('CAM Allowances'!$H$17*MIN($C$22,1000))+('CAM Allowances'!$I$17*($C$22-MIN($C$22,1000))) -> 8351.1 | K45: =SUM(G45:J45) -> 86059.8 | L45: =IF(K45>F45,K45-F45,0) -> 34362.8 | M45: =IF(K45<F45,F45-K45,0) -> 0 | N45: =IF(K45=0,0,L45/K45) -> 0.3992897962
A46: Subtotal Instructional Support | D46: =SUM(D42:D45) -> 142651 | E46: =SUM(E42:E45) -> 0 | F46: =SUM(F42:F45) -> 142651 | K46: =SUM(K42:K45) -> 283182.3 | L46: =SUM(L42:L45) -> 140531.3 | M46: =SUM(M42:M45) -> 0 | N46: =IF(K46=0,0,L46/K46) -> 0.4962573579
A48: Total Instructional Space | D48: =D46+D40 -> 354068 | E48: =E46+E40 -> 0 | F48: 354068 | K48: 516090.3 | L48: 205492.9 | M48: 43470.6 | N48: =IF(K48=0,0,L48/K48) -> 0.3981723741
A50: ADMIN./STU.SERV. | B50: G1,G2 | C50: 2 | D50: =VLOOKUP($B$4,Inventory!$C$8:$AJ$43,17,0)+VLOOKUP($B$4,Inventory!$C$8:$AJ$43,18,0) -> 50979 | F50: =SUM(D50:E50) -> 50979 | G50: =('CAM Allowances'!$D$18*MIN($C$20,1000))+('CAM Allowances'!$E$18*($C$20-MIN($C$20,1000))) -> 39939.55 | H50: =('CAM Allowances'!$F$18*MIN($C$21,1000))+('CAM Allowances'!$G$18*($C$21-MIN($C$21,1000))) -> 13694.47 | I50: =('CAM Allowances'!$H$18*MIN($C$22,1000))+('CAM Allowances'!$I$18*($C$22-MIN($C$22,1000))) -> 9139.03 | K50: =SUM(G50:J50) -> 62773.05 | L50: =IF(K50>F50,K50-F50,0) -> 11794.05 | M50: =IF(K50<F50,F50-K50,0) -> 0 | N50: =IF(K50=0,0,L50/K50) -> 0.1878839725
A51: STU.CTR.& RELATED | B51: H1,H2 | C51: 2 | D51: =VLOOKUP($B$4,Inventory!$C$8:$AJ$43,19,0)+VLOOKUP($B$4,Inventory!$C$8:$AJ$43,20,0) -> 46299 | F51: =SUM(D51:E51) -> 46299 | G51: =('CAM Allowances'!$D$19*MIN($C$20,1000))+('CAM Allowances'!$E$19*($C$20-MIN($C$20,1000))) -> 61288.95 | H51: =('CAM Allowances'!$F$19*MIN($C$21,1000))+('CAM Allowances'!$G$19*($C$21-MIN($C$21,1000))) -> 20514.43 | I51: =('CAM Allowances'!$H$19*MIN($C$22,1000))+('CAM Allowances'!$I$19*($C$22-MIN($C$22,1000))) -> 13437.07 | K51: =SUM(G51:J51) -> 95240.45 | L51: =IF(K51>F51,K51-F51,0) -> 48941.45 | M51: =IF(K51<F51,F51-K51,0) -> 0 | N51: 0.5138725195
A52: C.STORES/MAINT. | B52: I1 | C52: 2 | D52: =VLOOKUP($B$4,Inventory!$C$8:$AJ$43,23,0) -> 33249 | F52: =SUM(D52:E52) -> 33249 | G52: =('CAM Allowances'!$D$21*MIN($C$20,1000))+('CAM Allowances'!$E$21*($C$20-MIN($C$20,1000))) -> 31140 | H52: =('CAM Allowances'!$F$21*MIN($C$21,1000))+('CAM Allowances'!$G$21*($C$21-MIN($C$21,1000))) -> 7676 | I52: =('CAM Allowances'!$H$21*MIN($C$22,1000))+('CAM Allowances'!$I$21*($C$22-MIN($C$22,1000))) -> 7124 | K52: =SUM(G52:J52) -> 45940 | L52: =IF(K52>F52,K52-F52,0) -> 12691 | M52: =IF(K52<F52,F52-K52,0) -> 0 | N52: 0.2762516326
A53: CHILD CARE | B53: H4 | C53: 2 | D53: =VLOOKUP($B$4,Inventory!$C$8:$AJ$43,22,0) -> 16199 | F53: =SUM(D53:E53) -> 16199 | G53: =('CAM Allowances'!$D$20*MIN($C$20,1000))+('CAM Allowances'!$E$20*($C$20-MIN($C$20,1000))) -> 23919 | H53: =('CAM Allowances'!$F$20*MIN($C$21,1000))+('CAM Allowances'!$G$20*($C$21-MIN($C$21,1000))) -> 6524.6 | I53: =('CAM Allowances'!$H$20*MIN($C$22,1000))+('CAM Allowances'!$I$20*($C$22-MIN($C$22,1000))) -> 3505.4 | K53: =SUM(G53:J53) -> 33949 | L53: =IF(K53>F53,K53-F53,0) -> 17750 | M53: =IF(K53<F53,F53-K53,0) -> 0 | N53: 0.5228430882
A54: MISCELLANEOUS | B54: J,K,L,Z | C54: N/A | F54: =SUM(D54:E54) -> 0 | K54: =SUM(G54:J54) -> 0 | L54: =IF(K54>F54,K54-F54,0) -> 0 | M54: =IF(K54<F54,F54-K54,0) -> 0 | N54: 0
A55: Subtotal Student Service/Other | D55: =SUM(D50:D54) -> 146726 | E55: =SUM(E50:E54) -> 0 | F55: =SUM(F50:F54) -> 146726 | K55: =SUM(K50:K54) -> 237902.5 | L55: =SUM(L50:L54) -> 91176.5 | M55: =SUM(M50:M54) -> 0 | N55: 0.3832515421
A57: TOTAL CAM SPACE | D57: =D55+D48 -> 500794 | E57: =E55+E48 -> 0 | F57: 500794 | K57: 753992.8 | L57: 296669.4 | M57: 43470.6 | N57: =IF(K57=0,0,L57/K57) -> 0.3934644999
A59: TOTAL ASSIGNED | D59: =VLOOKUP($B$4,Inventory!$C$9:$AJ$43,34,0) -> 676434
A60: CAM/TOT. ASSIGN. | D60: =SUM(D57/D59) -> 0.7403442169

Sheet Committed Changes
H1: 4 | I1: 5 | J1: 6 | K1: 7 | L1: 8 | M1: 9 | N1: 10
C2: Committed Changes (Colleges need to break out assignable areas in their projects by CAM Category before using this workbook)
C4: Buildings in 2021-23 major project pipeline as of July 12, 2021
G6: Gross Square Feet | J6: UFI | L6: Name | N6: Projected
C7: College | D7: Project Name | E7: Number | F7: 2021-23 Phase | G7: Total | H7: Replaced by Project | I7: Renovated in Project | J7: To be Replaced | K7: To be Renovated | L7: To be Replaced | M7: To be Renovated | N7: Occupancy Date
C8: Bates | D8: Medical Mile Health Science Center | E8: 30000989 | F8: Construction Reap | G8: 70000 | H8: 64859 | I8: 0 | J8: A08982 | L8: Bldg B | N8: 2022-07-01
C9: Bates | D9: Fire Service Training Center | E9: 40000130 | F9: Construction | G9: 54700 | H9: 0 | I9: 0 | N9: 2023-02-01
C10: Bellevue | D10: Center for Transdisciplinary Learning and Innovation | E10: 40000168 | F10: Construction | G10: 60000 | H10: 0 | I10: 0 | N10: 2023-01-01
C11: Bellingham | D11: Engineering Technology Center - Bldg J Replacement | E11: 40000256 | F11: Design | G11: 21500 | H11: 11558 | I11: 0 | J11: A03143 | L11: J bldg | N11: 2023-05-01
C12: Big Bend | D12: Professional-Technical Education Center | E12: 30000981 | F12: Construction Reap | G12: 76140 | H12: 76549 | I12: 0 | J12: A00116, A06829, A06920, A07007, A07326 | L12: MAINTENANCE MECHANICS PRO, AG.EDUCATION&ENGINEERING, AUTO MECHANICS, AIRFRAME & POWERPLANT, WELDING LAB | N12: 2019-12-01
C13: Cascadia | D13: CC5 Gateway Building | E13: 40000222 | F13: Design | G13: 61600 | H13: 0 | I13: 0 | N13: 2024-11-01
C14: Centralia | D14: Teacher Education and Family Development Center | E14: 40000109 | F14: Design | G14: 18430 | H14: 17430 | I14: 0 | J14: A03193, A04011, A04649, A08717, A02548 | L14: 217 Iron, CDC, FAM, HFL, CEN | N14: 2024-06-01
C15: Clark | D15: North Clark County Satellite | E15: 30000135 | F15: Construction | G15: 69000 | H15: 0 | I15: 0 | N15: 2023-10-01
C16: Clark | D16: Hanna Foster Hawkins Complex Replacement | E16: 40000227 | F16: Design | G16: 40940 | H16: 35030 | I16: 0 | J16: A07210, A04633, A01409 | L16: Foster Hall, Hanna Hall, Hawkins Hall | N16: 2024-02-01
C17: Clover Park | D17: Center for Advanced Manufacturing Technologies | E17: 30000984 | F17: Construction Reap | G17: 62478 | H17: 59331 | I17: 0 | J17: A01800 | L17: AUXILIARY SERVICES | N17: 2019-08-01
C18: Columbia Basin | D18: Performing Arts Building Replacement | E18: 40000108 | F18: Design | G18: 58668 | H18: 37170 | I18: 0 | J18: A08055 | L18: P Building | N18: 2025-05-01
C19: Edmonds | D19: Triton Learning Commons | E19: 40000114 | F19: Design | G19: 58650 | H19: 0 | I19: 5250 | K19: A04627 (partial renovation) | M19: Lynnwood Hall | N19: 2025-07-01
C20: Edmonds | D20: Science Engineering Technology Bldg | E20: 30000137 | F20: Construction Reap | G20: 69912 | H20: 0 | I20: 0 | N20: 2020-03-01
C21: Everett | D21: Learning Resource Center | E21: 30000136 | F21: Construction | G21: 70000 | H21: 0 | I21: 0 | N21: 2023-01-01
C22: Everett | D22: Baker Hall Replacement | E22: 40000190 | F22: Design | G22: 50000 | H22: 23710 | I22: 0 | J22: A10077 | L22: Baker | N22: 2023-01-01
C23: Grays Harbor | D23: Student Services and Instructional Building | E23: 30000127 | F23: Construction | G23: 69985 | H23: 35080 | I23: 0 | J23: A00146, A00079 | L23: Hillier Union Building, Admin | N23: 2022-10-01
C24: Highline | D24: Health and Life Sciences | E24: 30000983 | F24: Construction Reap | G24: 46746 | H24: 8119 | I24: 30920 | J24: A05054, A08640 | K24: A00349 | L24: FACULTY A BLDG, FACULTY B BLDG | M24: MULTIPURPOSEB | N24: 2019-10-01
C25: Highline | D25: Welcome Center for Student Success | E25: 40000105 | F25: Design | G25: 60315 | H25: 54262 | I25: 0 | J25: A06008, A03870, A06104, A02946 | L25: Building 6, Building 15, Building 18, Building 16 | N25: 2025-02-01
C26: Lake Washington | D26: Center for Design | E26: 40000102 | F26: Construction | G26: 56500 | H26: 0 | I26: 0 | N26: 2023-01-01
C27: Lower Columbia | D27: Center for Vocational and Transitional Studies | E27: 40000106 | F27: Design | G27: 54799 | H27: 48795 | I27: 0 | J27: A09213, A03581, A03581, A01344 | L27: Science, Vocational, Vocational addition, Physical Science | N27: 2025-08-01
C28: North Seattle | D28: Library Building Renovation | E28: 30001451 | F28: Construction | G28: 58177 | H28: 0 | I28: 58177 | K28: A09018 (partial renovation) | M28: Library | N28: 2023-03-01
C29: Olympic | D29: College Instruction Center | E29: 30000122 | F29: Construction Reap | G29: 75332 | H29: 37320 | I29: 0 | J29: A02252, A04304, A09092, A10279 | M29: THEATRE, MUSIC, ART A, ART B | N29: 2018-07-15
C30: Olympic | D30: Shop Building Renovation | E30: 30000986 | F30: Construction Reap | G30: 21655 | H30: 0 | I30: 18510 | K30: A08453 | M30: Shop | N30: 2021-10-01
C31: Olympic | D31: Innovation & Technology Learning Center | E31: 40000103 | F31: Construction | G31: 40940 | H31: 0 | I31: 0 | N31: 2023-04-01
C32: Peninsula | D32: Advanced Technology Center | E32: 40000111 | F32: Design | G32: 31622 | H32: 30222 | I32: 0 | J32: A01722, A05205, A02443, A07598, A07011 | L32: P, Q, R, S, U | N32: 2023-09-01
C33: Pierce Fort Steilacoom | D33: Cascade Building Renovation - Phase 3 | E33: 30000987 | F33: Construction Reap | G33: 56600 | H33: 0 | I33: 38126 | K33: A08348 (partial renovation) | M33: Cascade | N33: 2020-05-01
C34: Pierce Puyallup | D34: STEM building | E34: 40000293 | F34: Construction | G34: 66500 | H34: 0 | I34: 0 | N34: 2023-01-01
C35: Renton | D35: Health Sciences Center | E35: 40000204 | F35: Design | G35: 69992 | H35: 0 | I35: 0 | N35: 2025-01-01
C36: Seattle Central | D36: Broadway Achievement Center | E36: 40000294 | F36: Design | G36: 43580 | H36: 0 | I36: 41174 | K36: A02918 | M36: Broadway Performance Hall | N36: 2025-09-01
C37: Shoreline | D37: Allied Health, Science & Manufacturing | E37: 30000990 | F37: Construction | G37: 69595 | H37: 64615 | I37: 0 | J37: A04825, A06611, A06410, A09157, A01606 | L37: Biosup, Voctec, Biolab, Scilab, Scioff | N37: 2023-09-01
C38: Shoreline | D38: STE(A)M Education Center | E38: 40000214 | F38: Design | G38: 49961 | H38: 47681 | I38: 0 | J38: A05615, A07428, A07524 | L38: Music 800, RegCla 2200, NursEd 2300 | N38: 2025-08-01
C39: Skagit | D39: Library Culinary Arts Building | E39: 40000110 | F39: Design | G39: 43200 | H39: 26730 | I39: 0 | J39: A05680 | L39: Norwood Cole Library | N39: 2025-08-01
C40: South Seattle | D40: Automotive Technology | E40: 30000988 | F40: Construction Reap | G40: 45590 | H40: 0 | I40: 34120 | K40: A02065 | M40: Automotive Technology | N40: 2022-07-01
C41: South Seattle | D41: Rainier Hall Renovation | E41: 40000231 | F41: Design | G41: 66585 | H41: 58305 | I41: 0 | J41: A04220 | L41: Rainier Hall | N41: 2025-09-01
C42: Spokane | D42: Main Building South Wing Renovation | E42: 30000982 | F42: Construction Reap | G42: 57818 | H42: 0 | I42: 50849 | K42: A08547 | M42: MAIN | N42: 2020-03-01
C43: Spokane | D43: Apprenticeship Center | E43: 40000107 | F43: Design | G43: 59525 | H43: 46565 | I43: 0 | J43: A00226, A10412, A21469, A25178 | L43: apprenticeship west, apprenticeship east, apprenticeship modules, apprenticeship storage | N43: 2025-08-01
C44: Spokane Falls | D44: Fine and Applied Arts Replacement | E44: 30001458 | F44: Construction | G44: 57693 | H44: 35274 | I44: 0 | J44: A09540, A06505 | L44: Photography, Fine Arts | N44: 2024-09-01
C45: Tacoma | D45: Center for Innovative Learning and Engagement | E45: 40000104 | F45: Design | G45: 53075 | H45: 25069 | I45: 0 | J45: A00792, A07263, A03517 | L45: Bulding 10, Building 10B, Building F1 | N45: 2024-12-01
C46: Walla Walla | D46: Science and Technology Building Replacement | E46: 30001452 | F46: Construction | G46: 16044 | H46: 16044 | I46: 0 | J46: A05789, A09884, A05356 | L46: CHINA PAVILION, GREENHOUSE, WOMEN'S CENTER | N46: 2022-12-01
C47: Wenatchee | D47: Wells Hall Replacement | E47: 30000985 | F47: Completed | G47: 69985 | H47: 28154 | I47: 0 | J47: A0497 | L47: Wells | N47: 2021-07-01
C48: Wenatchee | D48: Center for Technical Education and Innovation | E48: 40000198 | F48: Design | G48: 69980 | H48: 53596 | I48: 0 | J48: A04052, A00152, A05917 | L48: Batjer Hall, Industrial Technology, Refrigeration | N48: 2024-12-01
C49: Whatcom | D49: Technology and Engineering Center | E49: 40000137 | F49: Design | G49: 52000 | H49: 0 | I49: 0 | N49: 2023-12-01
C50: Whatcom | D50: Learning Commons | E50: 30000138 | F50: Construction Reap | G50: 65328 | H50: 0 | I50: 0 | N50: 2021-06-30
C51: Yakima | D51: Prior-Kendall Hall Replacement | E51: 40000506 | F51: Design | G51: 40177 | H51: 40177 | J51: A03623, A03366 | L51: Kendall Hall, Prior Hall | N51: 2025-04-01

Sheet Inventory
C1: 1 | D1: 2 | E1: 3 | F1: 4 | G1: 5 | H1: 6 | I1: 7 | J1: 8 | K1: 9 | L1: 10 | M1: 11 | N1: 12 | O1: 13 | P1: 14 | Q1: 15 | R1: 16 | S1: 17 | T1: 18 | U1: 19 | V1: 20 | W1: 21 | X1: 22 | Y1: 23 | Z1: 24 | AA1: 25 | AB1: 26 | AC1: 27 | AD1: 28 | AE1: 29 | AF1: 30 | AG1: 31 | AH1: 32 | AI1: 33 | AJ1: 35
B2: Inventory breakdown by room use (Colleges need to verify assignable area by CAM category before using this wookbook)
B3: `
B4: Owned Net Square Footage by Category Indicator
B5: All data from SB Data Warehouse July 12, 2021
D7: Classroom | F7: Laboratory | K7: Fine Arts | O7: Vocational | Q7: Learning & Study Support | R7: Faculty Work and Related | S7: Institutional Student Service Administration | U7: Student Social and Cultural Development | Y7: Supplies, Facilities, Grounds | Z7: Non-program Support | AF7: Community Relations | AG7: Self Support | AH7: Informal Learning | AI7: Coding Errors
B8: DISTRICT | C8: COLLEGE | D8: A1 | E8: A2 | F8: B1 | G8: B2 | H8: B3 | I8: B4 | J8: B5 | K8: C1 | L8: C2 | M8: C3 | N8: C4 | O8: D1 | P8: D2 | Q8: E1 | R8: F1 | S8: G1 | T8: G2 | U8: H1 | V8: H2 | W8: H3 | X8: H4 | Y8: I1 | Z8: J1 | AA8: J2 | AB8: J3 | AC8: J4 | AD8: J5 | AE8: J6 | AF8: K1 | AG8: L1 | AH8: M1 | AI8: Z | AJ8: TOTAL
B9: 280 | C9: Bates | D9: 32055 | E9: 7890 | F9: 672 | G9: 7797 | H9: 5093 | I9: 0 | J9: 2652 | K9: 0 | L9: 0 | M9: 0 | N9: 11570 | O9: 162883 | P9: 0 | Q9: 11796 | R9: 44573 | S9: 16991 | T9: 2333 | U9: 26461 | V9: 0 | W9: 0 | X9: 7137 | Y9: 4510 | Z9: 1632 | AA9: 898 | AB9: 0 | AC9: 118630 | AD9: 1036 | AE9: 0 | AF9: 11161 | AG9: 0 | AH9: 0 | AI9: 95078 | AJ9: =SUM(D9:AI9) -> 572848
B10: 080 | C10: Bellevue | D10: 100627 | E10: 14065 | F10: 38806 | G10: 17984 | H10: 4608 | I10: 6663 | J10: 2494 | K10: 9064 | L10: 9909 | M10: 11805 | N10: 2502 | O10: 15268 | P10: 2770 | Q10: 50125 | R10: 51697 | S10: 41813 | T10: 9166 | U10: 45503 | V10: 796 | W10: 38327 | X10: 16199 | Y10: 33249 | Z10: 1400 | AA10: 23371 | AB10: 0 | AC10: 120444 | AD10: 4024 | AE10: 0 | AF10: 1571 | AG10: 2184 | AH10: 0 | AI10: 0 | AJ10: =SUM(D10:AI10) -> 676434
B11: 250 | C11: Bellingham | D11: 23245 | E11: 2620 | F11: 0 | G11: 6556 | H11: 0 | I11: 11697 | J11: 0 | K11: 0 | L11: 0 | M11: 0 | N11: 4799 | O11: 125791 | P11: 0 | Q11: 14924 | R11: 8560 | S11: 13209 | T11: 3118 | U11: 14673 | V11: 0 | W11: 812 | X11: 0 | Y11: 10494 | Z11: 0 | AA11: 0 | AB11: 0 | AC11: 60076 | AD11: 568 | AE11: 0 | AF11: 654 | AG11: 0 | AH11: 1431 | AI11: 3369 | AJ11: 306596
B12: 180 | C12: Big Bend | D12: 18807 | E12: 2146 | F12: 4574 | G12: 803 | H12: 3062 | I12: 1892 | J12: 1402 | K12: 0 | L12: 2057 | M12: 4592 | N12: 5642 | O12: 115205 | P12: 1214 | Q12: 20131 | R12: 17143 | S12: 13995 | T12: 4110 | U12: 31857 | V12: 4000 | W12: 24356 | X12: 0 | Y12: 13582 | Z12: 0 | AA12: 1688 | AB12: 0 | AC12: 3004 | AD12: 1137 | AE12: 0 | AF12: 3426 | AG12: 0 | AH12: 0 | AI12: 19747 | AJ12: 319572
B13: 300 | C13: Cascadia | D13: 23529 | E13: 0 | F13: 6971 | G13: 5195 | H13: 0 | I13: 3498 | J13: 985 | K13: 0 | L13: 0 | M13: 0 | N13: 2268 | O13: 0 | P13: 0 | Q13: 2230 | R13: 4543 | S13: 18355 | T13: 1433 | U13: 6210 | V13: 931 | W13: 0 | X13: 0 | Y13: 1844 | Z13: 0 | AA13: 0 | AB13: 2552 | AC13: 27621 | AD13: 50 | AE13: 0 | AF13: 0 | AG13: 0 | AH13: 13972 | AI13: 153877 | AJ13: 276064
B14: 121 | C14: Centralia | D14: 4419 | E14: 48 | F14: 0 | G14: 0 | H14: 35 | I14: 42 | J14: 0 | K14: 670 | L14: 835 | M14: 1833 | N14: 259 | O14: 0 | P14: 0 | Q14: 120 | R14: 1409 | S14: 3528 | T14: 1224 | U14: 301 | V14: 0 | W14: 0 | X14: 0 | Y14: 0 | Z14: 0 | AA14: 0 | AB14: 0 | AC14: 5450 | AD14: 0 | AE14: 0 | AF14: 0 | AG14: 0 | AH14: 0 | AI14: 246487 | AJ14: 266660
B15: 140 | C15: Clark | D15: 114938 | E15: 6439 | F15: 53536 | G15: 19627 | H15: 7025 | I15: 7945 | J15: 1473 | K15: 9231 | L15: 10302 | M15: 3831 | N15: 13895 | O15: 92149 | P15: 847 | Q15: 32412 | R15: 58055 | S15: 66463 | T15: 7373 | U15: 43235 | V15: 3441 | W15: 29813 | X15: 4882 | Y15: 22958 | Z15: 576 | AA15: 0 | AB15: 292 | AC15: 207978 | AD15: 1364 | AE15: 0 | AF15: 1946 | AG15: 0 | AH15: 2376 | AI15: 29 | AJ15: 824431
B16: 290 | C16: Clover Park | D16: 12113 | E16: 4081 | F16: 1125 | G16: 21534 | H16: 14255 | I16: 0 | J16: 0 | K16: 0 | L16: 0 | M16: 0 | N16: 0 | O16: 255761 | P16: 33541 | Q16: 12570 | R16: 17201 | S16: 27474 | T16: 1307 | U16: 41441 | V16: 0 | W16: 0 | X16: 63 | Y16: 1855 | Z16: 3128 | AA16: 0 | AB16: 0 | AC16: 122676 | AD16: 6417 | AE16: 0 | AF16: 541 | AG16: 0 | AH16: 0 | AI16: 27184 | AJ16: 604267
B17: 190 | C17: Columbia Basin | D17: 102940 | E17: 2252 | F17: 28571 | G17: 10020 | H17: 6912 | I17: 5305 | J17: 3382 | K17: 5809 | L17: 3116 | M17: 12034 | N17: 7045 | O17: 72013 | P17: 4604 | Q17: 18986 | R17: 70104 | S17: 32536 | T17: 7493 | U17: 35696 | V17: 848 | W17: 42057 | X17: 2312 | Y17: 33352 | Z17: 8301 | AA17: 1221 | AB17: 0 | AC17: 248028 | AD17: 6799 | AE17: 17281 | AF17: 3121 | AG17: 495 | AH17: 0 | AI17: 94305 | AJ17: 886938
B18: 230 | C18: Edmonds | D18: 59951 | E18: 17490 | F18: 28154 | G18: 9243 | H18: 4462 | I18: 17955 | J18: 2792 | K18: 14377 | L18: 6326 | M18: 2953 | N18: 4525 | O18: 27011 | P18: 14054 | Q18: 30230 | R18: 46072 | S18: 50518 | T18: 8089 | U18: 35243 | V18: 4050 | W18: 27195 | X18: 5796 | Y18: 21980 | Z18: 0 | AA18: 0 | AB18: 0 | AC18: 66321 | AD18: 1921 | AE18: 0 | AF18: 5672 | AG18: 0 | AH18: 12830 | AI18: 0 | AJ18: 525210
B19: 050 | C19: Everett | D19: 35694 | E19: 9004 | F19: 41813 | G19: 15542 | H19: 4889 | I19: 2277 | J19: 28214 | K19: 22228 | L19: 4712 | M19: 812 | N19: 0 | O19: 72257 | P19: 13166 | Q19: 7170 | R19: 53085 | S19: 19034 | T19: 2570 | U19: 29756 | V19: 1091 | W19: 0 | X19: 0 | Y19: 30211 | Z19: 0 | AA19: 8716 | AB19: 228 | AC19: 10665 | AD19: 6073 | AE19: 0 | AF19: 360 | AG19: 664 | AH19: 3927 | AI19: 76378 | AJ19: 500536
B20: 020 | C20: Grays Harbor | D20: 28462 | E20: 0 | F20: 775 | G20: 0 | H20: 864 | I20: 6785 | J20: 118 | K20: 0 | L20: 1653 | M20: 12216 | N20: 7285 | O20: 58231 | P20: 425 | Q20: 16087 | R20: 11571 | S20: 9020 | T20: 404 | U20: 17453 | V20: 3080 | W20: 14558 | X20: 2522 | Y20: 18757 | Z20: 1360 | AA20: 2781 | AB20: 6262 | AC20: 25644 | AD20: 3927 | AE20: 0 | AF20: 818 | AG20: 0 | AH20: 0 | AI20: 60386 | AJ20: 311444
B21: 100 | C21: Green River | D21: 50104 | E21: 10580 | F21: 23291 | G21: 11576 | H21: 1528 | I21: 6235 | J21: 6090 | K21: 0 | L21: 3179 | M21: 6670 | N21: 3092 | O21: 19565 | P21: 1082 | Q21: 18955 | R21: 14366 | S21: 42690 | T21: 5055 | U21: 30645 | V21: 971 | W21: 27698 | X21: 3533 | Y21: 12335 | Z21: 0 | AA21: 1129 | AB21: 0 | AC21: 124248 | AD21: 4195 | AE21: 0 | AF21: 711 | AG21: 0 | AH21: 0 | AI21: 113049 | AJ21: 542572
B22: 090 | C22: Highline | D22: 83640 | E22: 0 | F22: 20947 | G22: 1395 | H22: 1020 | I22: 16466 | J22: 1966 | K22: 5267 | L22: 4775 | M22: 1104 | N22: 3218 | O22: 19809 | P22: 2050 | Q22: 31351 | R22: 31046 | S22: 34186 | T22: 6557 | U22: 40536 | V22: 690 | W22: 42713 | X22: 14162 | Y22: 25944 | Z22: 0 | AA22: 369 | AB22: 0 | AC22: 116019 | AD22: 20190 | AE22: 0 | AF22: 2071 | AG22: 0 | AH22: 1205 | AI22: 42946 | AJ22: 571642
B23: 260 | C23: Lake Washington | D23: 25680 | E23: 5244 | F23: 6168 | G23: 14135 | H23: 2493 | I23: 0 | J23: 3575 | K23: 0 | L23: 0 | M23: 0 | N23: 7366 | O23: 145974 | P23: 756 | Q23: 16273 | R23: 13655 | S23: 34976 | T23: 4183 | U23: 15886 | V23: 212 | W23: 5757 | X23: 0 | Y23: 13135 | Z23: 0 | AA23: 832 | AB23: 2241 | AC23: 114268 | AD23: 17704 | AE23: 0 | AF23: 1117 | AG23: 1083 | AH23: 2984 | AI23: 4391 | AJ23: 460088
B24: 130 | C24: Lower Columbia | D24: 38728 | E24: 8261 | F24: 16417 | G24: 2985 | H24: 4801 | I24: 5137 | J24: 4285 | K24: 3730 | L24: 3347 | M24: 7687 | N24: 10333 | O24: 59265 | P24: 0 | Q24: 15705 | R24: 22680 | S24: 20024 | T24: 878 | U24: 2142 | V24: 3032 | W24: 22620 | X24: 1497 | Y24: 18280 | Z24: 0 | AA24: 0 | AB24: 2802 | AC24: 17977 | AD24: 29111 | AE24: 15250 | AF24: 1124 | AG24: 0 | AH24: 546 | AI24: 7767 | AJ24: 346411
B25: 030 | C25: Olympic | D25: 56485 | E25: 1653 | F25: 18745 | G25: 3368 | H25: 124 | I25: 20218 | J25: 2940 | K25: 9112 | L25: 4028 | M25: 4514 | N25: 5965 | O25: 42605 | P25: 5018 | Q25: 28081 | R25: 23110 | S25: 35823 | T25: 3697 | U25: 26039 | V25: 1230 | W25: 30160 | X25: 3440 | Y25: 12269 | Z25: 0 | AA25: 1077 | AB25: 221 | AC25: 116143 | AD25: 11342 | AE25: 0 | AF25: 1064 | AG25: 0 | AH25: 2870 | AI25: 31139 | AJ25: 502480
B26: 010 | C26: Peninsula | D26: 39455 | E26: 930 | F26: 13813 | G26: 5022 | H26: 0 | I26: 2067 | J26: 1007 | K26: 6648 | L26: 2840 | M26: 1406 | N26: 9964 | O26: 19629 | P26: 0 | Q26: 23178 | R26: 17028 | S26: 21725 | T26: 2641 | U26: 16300 | V26: 1570 | W26: 15436 | X26: 0 | Y26: 15423 | Z26: 0 | AA26: 0 | AB26: 0 | AC26: 73848 | AD26: 502 | AE26: 0 | AF26: 2573 | AG26: 3305 | AH26: 1785 | AI26: 0 | AJ26: 298095
B27: 111 | C27: Pierce FS | D27: 69749 | E27: 1207 | F27: 17992 | G27: 870 | H27: 5818 | I27: 4834 | J27: 1350 | K27: 0 | L27: 6496 | M27: 5202 | N27: 3347 | O27: 28112 | P27: 1630 | Q27: 43167 | R27: 25581 | S27: 38703 | T27: 12015 | U27: 27454 | V27: 3269 | W27: 26373 | X27: 6869 | Y27: 21232 | Z27: 0 | AA27: 820 | AB27: 224 | AC27: 39376 | AD27: 220 | AE27: 0 | AF27: 1820 | AG27: 0 | AH27: 0 | AI27: 560 | AJ27: 394290
B28: 112 | C28: Pierce PY | D28: 36021 | E28: 0 | F28: 8795 | G28: 11209 | H28: 3034 | I28: 2279 | J28: 0 | K28: 2488 | L28: 2216 | M28: 7411 | N28: 6544 | O28: 8147 | P28: 0 | Q28: 17039 | R28: 10993 | S28: 14607 | T28: 3674 | U28: 25433 | V28: 3800 | W28: 9299 | X28: 5930 | Y28: 4441 | Z28: 0 | AA28: 0 | AB28: 0 | AC28: 29487 | AD28: 0 | AE28: 0 | AF28: 0 | AG28: 0 | AH28: 0 | AI28: 0 | AJ28: 212847
B29: 270 | C29: Renton | D29: 8240 | E29: 11512 | F29: 1591 | G29: 12475 | H29: 25549 | I29: 7326 | J29: 0 | K29: 0 | L29: 0 | M29: 0 | N29: 3920 | O29: 190937 | P29: 0 | Q29: 17008 | R29: 15253 | S29: 25929 | T29: 2589 | U29: 24384 | V29: 0 | W29: 503 | X29: 6136 | Y29: 9108 | Z29: 0 | AA29: 0 | AB29: 0 | AC29: 60181 | AD29: 4718 | AE29: 0 | AF29: 640 | AG29: 0 | AH29: 0 | AI29: 11077 | AJ29: 439076
B30: 062 | C30: Seattle Central | D30: 94429 | E30: 7751 | F30: 13143 | G30: 14003 | H30: 4975 | I30: 17044 | J30: 1620 | K30: 10630 | L30: 3422 | M30: 8823 | N30: 6738 | O30: 134703 | P30: 0 | Q30: 45983 | R30: 54973 | S30: 95003 | T30: 2099 | U30: 37641 | V30: 8572 | W30: 31833 | X30: 4692 | Y30: 45314 | Z30: 14287 | AA30: 0 | AB30: 0 | AC30: 227650 | AD30: 36729 | AE30: 0 | AF30: 1031 | AG30: 0 | AH30: 4356 | AI30: 7820 | AJ30: 935264
B31: 063 | C31: Seattle North | D31: 57366 | E31: 916 | F31: 18699 | G31: 912 | H31: 3029 | I31: 1350 | J31: 0 | K31: 10136 | L31: 5068 | M31: 2869 | N31: 8269 | O31: 11131 | P31: 0 | Q31: 30883 | R31: 14982 | S31: 30575 | T31: 558 | U31: 36899 | V31: 918 | W31: 0 | X31: 10813 | Y31: 14488 | Z31: 37272 | AA31: 0 | AB31: 0 | AC31: 162543 | AD31: 7911 | AE31: 0 | AF31: 1457 | AG31: 0 | AH31: 0 | AI31: 161381 | AJ31: 630425
B32: 064 | C32: Seattle South | D32: 54747 | E32: 4607 | F32: 8543 | G32: 15238 | H32: 3473 | I32: 3848 | J32: 0 | K32: 6742 | L32: 2793 | M32: 0 | N32: 2568 | O32: 172176 | P32: 0 | Q32: 18526 | R32: 27980 | S32: 36696 | T32: 1853 | U32: 11765 | V32: 0 | W32: 3019 | X32: 2079 | Y32: 22704 | Z32: 0 | AA32: 0 | AB32: 596 | AC32: 61928 | AD32: 678 | AE32: 0 | AF32: 1707 | AG32: 0 | AH32: 1523 | AI32: 60808 | AJ32: 526597
B33: 065 | C33: Seattle Voc | D33: 14328 | E33: 0 | F33: 0 | G33: 6729 | H33: 4975 | I33: 2067 | J33: 0 | K33: 0 | L33: 0 | M33: 0 | N33: 0 | O33: 9015 | P33: 0 | Q33: 4493 | R33: 14239 | S33: 10662 | T33: 0 | U33: 3335 | V33: 0 | W33: 0 | X33: 4512 | Y33: 1266 | Z33: 0 | AA33: 0 | AB33: 0 | AC33: 23690 | AD33: 157 | AE33: 0 | AF33: 0 | AG33: 0 | AH33: 0 | AI33: 0 | AJ33: 99468
B34: 070 | C34: Shoreline | D34: 53354 | E34: 2291 | F34: 16152 | G34: 4507 | H34: 1234 | I34: 743 | J34: 1254 | K34: 5954 | L34: 6943 | M34: 3970 | N34: 6940 | O34: 69144 | P34: 2494 | Q34: 33884 | R34: 27335 | S34: 24597 | T34: 1972 | U34: 19341 | V34: 810 | W34: 33557 | X34: 0 | Y34: 2471 | Z34: 0 | AA34: 0 | AB34: 0 | AC34: 30627 | AD34: 2936 | AE34: 0 | AF34: 739 | AG34: 0 | AH34: 0 | AI34: 46748 | AJ34: 399997
B35: 040 | C35: Skagit Valley | D35: 63654 | E35: 3972 | F35: 18527 | G35: 3111 | H35: 4659 | I35: 4198 | J35: 3710 | K35: 12931 | L35: 2133 | M35: 9466 | N35: 8699 | O35: 69377 | P35: 336 | Q35: 42959 | R35: 26050 | S35: 34513 | T35: 2824 | U35: 34014 | V35: 554 | W35: 52504 | X35: 4148 | Y35: 6815 | Z35: 0 | AA35: 2041 | AB35: 3423 | AC35: 86978 | AD35: 11107 | AE35: 0 | AF35: 944 | AG35: 0 | AH35: 7648 | AI35: 0 | AJ35: 521295
B36: 240 | C36: South Puget Sound | D36: 67408 | E36: 6160 | F36: 4918 | G36: 6061 | H36: 0 | I36: 5746 | J36: 698 | K36: 703 | L36: 4181 | M36: 938 | N36: 9584 | O36: 36603 | P36: 0 | Q36: 0 | R36: 27323 | S36: 5372 | T36: 5962 | U36: 19342 | V36: 1495 | W36: 0 | X36: 9330 | Y36: 8983 | Z36: 0 | AA36: 0 | AB36: 1191 | AC36: 70589 | AD36: 1546 | AE36: 0 | AF36: 0 | AG36: 0 | AH36: 4029 | AI36: 182742 | AJ36: 480904
B37: 171 | C37: Spokane CC | D37: 113048 | E37: 7509 | F37: 18787 | G37: 15873 | H37: 21857 | I37: 10209 | J37: 2039 | K37: 0 | L37: 0 | M37: 0 | N37: 16447 | O37: 327942 | P37: 6772 | Q37: 39454 | R37: 66750 | S37: 62698 | T37: 6539 | U37: 43373 | V37: 377 | W37: 49983 | X37: 6389 | Y37: 30482 | Z37: 2019 | AA37: 4034 | AB37: 3113 | AC37: 256976 | AD37: 2437 | AE37: 0 | AF37: 3638 | AG37: 0 | AH37: 240 | AI37: 1306254 | AJ37: 2425239
B38: 172 | C38: Spokane Falls | D38: 92100 | E38: 9720 | F38: 24911 | G38: 5765 | H38: 4824 | I38: 19514 | J38: 3748 | K38: 17845 | L38: 14211 | M38: 5116 | N38: 12787 | O38: 60327 | P38: 0 | Q38: 33996 | R38: 64114 | S38: 36317 | T38: 2838 | U38: 55447 | V38: 1324 | W38: 15035 | X38: 17505 | Y38: 18797 | Z38: 0 | AA38: 795 | AB38: 0 | AC38: 185313 | AD38: 80 | AE38: 0 | AF38: 291 | AG38: 0 | AH38: 0 | AI38: 1049577 | AJ38: 1752297
B39: 220 | C39: Tacoma | D39: 55573 | E39: 17441 | F39: 22133 | G39: 2795 | H39: 7643 | I39: 6230 | J39: 1087 | K39: 12636 | L39: 3386 | M39: 0 | N39: 4182 | O39: 19240 | P39: 0 | Q39: 29152 | R39: 42539 | S39: 36806 | T39: 6179 | U39: 24327 | V39: 1543 | W39: 17647 | X39: 10159 | Y39: 25460 | Z39: 0 | AA39: 465 | AB39: 1235 | AC39: 120116 | AD39: 3014 | AE39: 0 | AF39: 3365 | AG39: 0 | AH39: 0 | AI39: 28944 | AJ39: 503297
B40: 200 | C40: Walla Walla | D40: 31323 | E40: 8390 | F40: 7522 | G40: 1845 | H40: 1647 | I40: 3210 | J40: 2152 | K40: 2856 | L40: 2440 | M40: 5981 | N40: 18378 | O40: 143741 | P40: 0 | Q40: 20723 | R40: 24405 | S40: 13467 | T40: 473 | U40: 23888 | V40: 2519 | W40: 33938 | X40: 4640 | Y40: 3344 | Z40: 0 | AA40: 0 | AB40: 0 | AC40: 38791 | AD40: 2237 | AE40: 0 | AF40: 668 | AG40: 0 | AH40: 0 | AI40: 16396 | AJ40: 414974
B41: 150 | C41: Wenatchee Valley | D41: 34324 | E41: 0 | F41: 19113 | G41: 4086 | H41: 3839 | I41: 3292 | J41: 2074 | K41: 14990 | L41: 8528 | M41: 3869 | N41: 8181 | O41: 26112 | P41: 591 | Q41: 21028 | R41: 16315 | S41: 11230 | T41: 990 | U41: 16617 | V41: 2667 | W41: 18850 | X41: 0 | Y41: 17037 | Z41: 0 | AA41: 805 | AB41: 1796 | AC41: 39482 | AD41: 6362 | AE41: 2019 | AF41: 2851 | AG41: 0 | AH41: 0 | AI41: 1074 | AJ41: 288122
B42: 210 | C42: Whatcom | D42: 39633 | E42: 0 | F42: 14603 | G42: 6229 | H42: 0 | I42: 915 | J42: 0 | K42: 5474 | L42: 0 | M42: 4173 | N42: 3042 | O42: 2146 | P42: 0 | Q42: 14054 | R42: 14564 | S42: 14912 | T42: 1359 | U42: 17765 | V42: 0 | W42: 14228 | X42: 3270 | Y42: 13713 | Z42: 900 | AA42: 0 | AB42: 0 | AC42: 83155 | AD42: 317 | AE42: 0 | AF42: 0 | AG42: 0 | AH42: 0 | AI42: 46475 | AJ42: 300927
B43: 160 | C43: Yakima Valley | D43: 64032 | E43: 18108 | F43: 17224 | G43: 18141 | H43: 0 | I43: 2130 | J43: 4203 | K43: 10307 | L43: 2855 | M43: 3695 | N43: 5148 | O43: 52293 | P43: 2794 | Q43: 29521 | R43: 45854 | S43: 54690 | T43: 9707 | U43: 9527 | V43: 6014 | W43: 28561 | X43: 8767 | Y43: 13949 | Z43: 7259 | AA43: 11408 | AB43: 0 | AC43: 172175 | AD43: 17691 | AE43: 28570 | AF43: 340 | AG43: 0 | AH43: 15999 | AI43: 33298 | AJ43: 694260
C44: Total | D44: =SUM(D9:D43) -> 1800201 | E44: =SUM(E9:E43) -> 192287 | F44: 537031 | G44: 282631 | H44: 157727 | I44: 209117 | J44: 87310 | K44: 199828 | L44: 121751 | M44: 132970 | N44: 224502 | O44: 2664562 | P44: 94144 | Q44: 792194 | R44: 1025148 | S44: =SUM(S9:S43) -> 1049137 | T44: =SUM(T9:T43) -> 133262 | U44: 889929 | V44: 59804 | W44: 656832 | X44: 166782 | Y44: 549782 | Z44: 78134 | AA44: 62450 | AB44: 26176 | AC44: 3268097 | AD44: =SUM(AD9:AD43) -> 214500 | AE44: =SUM(AE9:AE43) -> 63120 | AF44: 57421 | AG44: 7731 | AH44: 77721 | AI44: 3929286 | AJ44: =SUM(D44:AI44) -> 19811567
C47: Status | D47: include 0, A, AC, Active, IN, INUSE, O, OP, and OPER
C48: ON-OFF-CAMPUS | D48: include 1, 2, and (blank)
C49: OWNR-STAT | D49: include 1, 2, and (blank)

Sheet CAM Allowances
B3: Capital Asset Model, adopted February 7, 2013
B5: Assignable Square Feet per FTE Student
B6: Type of Space | C6: FTE Type | D6: Academic FTE | F6: Vocational FTE | H6: Basic Skills FTE
D7: First 1,000 | E7: Additional | F7: First 1,000 | G7: Additional | H7: First 1,000 | I7: Additional
B8: General Classroom | C8: 1 | D8: 12.4 | E8: 12.4 | F8: 7.5 | G8: 7.5 | H8: N/A | I8: N/A
B9: Basic Skills | C9: 2 | D9: N/A | E9: N/A | F9: N/A | G9: N/A | H9: 27.6 | I9: 27.6
B10: Science Lab | C10: 1 | D10: 6 | E10: 6 | F10: 3.5 | G10: 3.5 | H10: N/A | I10: N/A
B11: Computer Lab (open) | C11: 2 | D11: 3.2 | E11: 3.2 | F11: 3.2 | G11: 3.2 | H11: 3.2 | I11: 3.2
B12: Music | C12: 2 | D12: A one-time allowance of 4,000 asf @ CCs only
B13: Art | C13: 2 | D13: A one-time allowance of 6,000 asf @ CCs only
B14: Drama | C14: 2 | D14: A one-time allowance of 5,000 asf @ CCs only
B15: Physical Education ** | C15: 2 | D15: 26 | E15: 10 | F15: N/A | G15: N/A | H15: N/A | I15: N/A
B16: Library *** | C16: 2 | D16: 16.8 | E16: 8.5 | F16: 16.8 | G16: 8.5 | H16: 16.8 | I16: 8.5
B17: Faculty Office | C17: 2 | D17: 8.1 | E17: 8.1 | F17: 10.8 | G17: 10.8 | H17: 8.1 | I17: 8.1
B18: Admin/Student Services | C18: 2 | D18: 8.98 | E18: 5.13 | F18: 8.98 | G18: 5.13 | H18: 8.98 | I18: 5.13
B19: Student Center & Related | C19: 2 | D19: 13.19 | E19: 7.97 | F19: 13.19 | G19: 7.97 | H19: 13.19 | I19: 7.97
B20: Childcare | C20: 2 | D20: 3.4 | E20: 3.4 | F20: 3.4 | G20: 3.4 | H20: 3.4 | I20: 3.4
B21: Central Stores/Maintenance | C21: 2 | D21: 7 | E21: 4 | F21: 4 | G21: 4 | H21: 7 | I21: 4
B22: Auditorium | C22: 2 | D22: A one-time, total space of 9,000 asf @ CCs and TCs
B24: FTE Type 1: | C24: Day On Campus w/o Online (Category 3N).
B25: FTE Type 2: | C25: Day On Campus plus Online of same intent regardless of time of day.
B27: * Vocational space will be included in the CAM based on a formal analysis of space needs by program and projected enrollment growth.
B28: ** Calculation based on first 500 FTE.

Sheet FTE Lookup
B1: 1 | C1: 2 | D1: 3 | E1: 4 | F1: 5 | G1: 6 | H1: 7 | I1: 8 | J1: 9 | K1: 10 | L1: 11
C3: WA State Board for Community and Technical Colleges
C4: Summary of Fall FTEs Used in the 2023-25 CAM
C5: CAM V01
C6: EXCLUDING Department of Corrections (DOC)
C7: Type 1 = Day On-Campus (excludes Online)
C8: Type 2 = Day On-Campus + Online
B9: Lookup | C9: 010 | D9: Fall 2019 FTEs | G9: Fall 2029 FTE Projections | J9: FTE Growth (Fall)
B10: College | C10: Intent | D10: Total | E10: Type 1 | F10: Type 2 | G10: Total | H10: Type 1 | I10: Type 2 | J10: Total | K10: Type 1 | L10: Type 2
B11: Bates Academic | C11: Academic | D11: 164.066502 | E11: 90.666576 | F11: 164.066502 | G11: 177 | H11: 98 | I11: 177 | J11: 12.933498 | K11: 7.333424 | L11: 12.933498
B12: Bates Vocational | C12: Vocational | D12: 3027.329942 | E12: 1250.551717 | F12: 1567.351357 | G12: 3258 | H12: 1346 | I12: 1687 | J12: 230.670058 | K12: 95.448283 | L12: 119.648643
B13: Bates Basic Skills/Dev Ed | C13: Basic Skills/Dev Ed | D13: 186.426454 | E13: 158.773155 | F13: 186.426454 | G13: 201 | H13: 171 | I13: 201 | J13: 14.573546 | K13: 12.226845 | L13: 14.573546
B14: Bellevue Academic | C14: Academic | D14: 6970.560279 | E14: 4784.095546 | F14: 6527.560635 | G14: 7512 | H14: 5156 | I14: 7035 | J14: 541.439721 | K14: 371.904454 | L14: 507.439365
B15: Bellevue Vocational | C15: Vocational | D15: 2275.984482 | E15: 1113.05225 | F15: 1780.318204 | G15: 2453 | H15: 1200 | I15: 1919 | J15: 177.015518 | K15: 86.94775 | L15: 138.681796
B16: Bellevue Basic Skills/Dev Ed | C16: Basic Skills/Dev Ed | D16: 1246.305412 | E16: 890.905757 | F16: 957.105688 | G16: 1343 | H16: 960 | I16: 1031 | J16: 96.694588 | K16: 69.094243 | L16: 73.894312
B17: Bellingham Academic | C17: Academic | D17: 428.999571 | E17: 237.666429 | F17: 381.999618 | G17: 462 | H17: 256 | I17: 411 | J17: 33.000429 | K17: 18.333571 | L17: 29.000382
B18: Bellingham Vocational | C18: Vocational | D18: 1447.631468 | E18: 1040.465365 | F18: 1162.59852 | G18: 1557 | H18: 1119 | I18: 1250 | J18: 109.368532 | K18: 78.534635 | L18: 87.40148
B19: Bellingham Basic Skills/Dev Ed | C19: Basic Skills/Dev Ed | D19: 222.673055 | E19: 183.819807 | F19: 197.819793 | G19: 240 | H19: 198 | I19: 213 | J19: 17.326945 | K19: 14.180193 | L19: 15.180207
B20: Big Bend Academic | C20: Academic | D20: 1010.59889 | E20: 719.865824 | F20: 970.4656 | G20: 1146 | H20: 816 | I20: 1100 | J20: 135.40111 | K20: 96.134176 | L20: 129.5344
B21: Big Bend Vocational | C21: Vocational | D21: 587.072512 | E21: 367.03952 | F21: 429.239442 | G21: 666 | H21: 416 | I21: 487 | J21: 78.927488 | K21: 48.96048 | L21: 57.760558
B22: Big Bend Basic Skills/Dev Ed | C22: Basic Skills/Dev Ed | D22: 380.926268 | E22: 231.699752 | F22: 254.153056 | G22: 432 | H22: 263 | I22: 288 | J22: 51.073732 | K22: 31.300248 | L22: 33.846944
B23: Cascadia Academic | C23: Academic | D23: 2315.864444 | E23: 1528.798557 | F23: 1861.131558 | G23: 2556 | H23: 1687 | I23: 2054 | J23: 240.135556 | K23: 158.201443 | L23: 192.868442
B24: Cascadia Vocational | C24: Vocational | D24: 160.533123 | E24: 60.199926 | F24: 92.333194 | G24: 177 | H24: 66 | I24: 102 | J24: 16.466877 | K24: 5.800074 | L24: 9.666806
B25: Cascadia Basic Skills/Dev Ed | C25: Basic Skills/Dev Ed | D25: 321.199758 | E25: 234.666444 | F25: 234.666444 | G25: 355 | H25: 259 | I25: 259 | J25: 33.800242 | K25: 24.333556 | L25: 24.333556
B26: Centralia Academic | C26: Academic | D26: 1100.198666 | E26: 774.93246 | F26: 990.265592 | G26: 1171 | H26: 825 | I26: 1054 | J26: 70.801334 | K26: 50.06754 | L26: 63.734408
B27: Centralia Vocational | C27: Vocational | D27: 753.372516 | E27: 488.686213 | F27: 566.019465 | G27: 802 | H27: 520 | I27: 603 | J27: 48.627484 | K27: 31.313787 | L27: 36.980535
B28: Centralia Basic Skills/Dev Ed | C28: Basic Skills/Dev Ed | D28: 302.886335 | E28: 215.179761 | F28: 235.179742 | G28: 322 | H28: 229 | I28: 250 | J28: 19.113665 | K28: 13.820239 | L28: 14.820258
B29: Clark Academic | C29: Academic | D29: 4835.384 | E29: 3334 | F29: 1231.678 | G29: 5238 | H29: 3612 | I29: 1334 | J29: 402.616 | K29: 278 | L29: 102.322
B30: Clark Vocational | C30: Vocational | D30: 1534.353 | E30: 1024 | F30: 325.608 | G30: 1662 | H30: 1109 | I30: 353 | J30: 127.647 | K30: 85 | L30: 27.392
B31: Clark Basic Skills/Dev Ed | C31: Basic Skills/Dev Ed | D31: 910.547 | E31: 654 | F31: 109.097 | G31: 986 | H31: 708 | I31: 118 | J31: 75.453 | K31: 54 | L31: 8.903
B32: Clover Park Academic | C32: Academic | D32: 592.546156 | E32: 354.933055 | F32: 534.479543 | G32: 636 | H32: 381 | I32: 574 | J32: 43.453844 | K32: 26.066945 | L32: 39.520457
B33: Clover Park Vocational | C33: Vocational | D33: 2488.51669 | E33: 1607.644633 | F33: 1765.911115 | G33: 2669 | H33: 1724 | I33: 1894 | J33: 180.48331 | K33: 116.355367 | L33: 128.088885
B34: Clover Park Basic Skills/Dev Ed | C34: Basic Skills/Dev Ed | D34: 410.719761 | E34: 269.706487 | F34: 281.706475 | G34: 441 | H34: 290 | I34: 302 | J34: 30.280239 | K34: 20.293513 | L34: 20.293525
B35: Columbia Basin Academic | C35: Academic | D35: 3623.615634 | E35: 2601.996788 | F35: 3351.595924 | G35: 4263 | H35: 3061 | I35: 3943 | J35: 639.384366 | K35: 459.003212 | L35: 591.404076
B36: Columbia Basin Vocational | C36: Vocational | D36: 1378.325129 | E36: 374.292772 | F36: 714.825705 | G36: 1622 | H36: 440 | I36: 841 | J36: 243.674871 | K36: 65.707228 | L36: 126.174295
B37: Columbia Basin Basic Skills/Dev Ed | C37: Basic Skills/Dev Ed | D37: 836.572453 | E37: 476.639314 | F37: 541.972582 | G37: 984 | H37: 561 | I37: 637 | J37: 147.427547 | K37: 84.360686 | L37: 95.027418
B38: Edmonds Academic | C38: Academic | D38: 3075.316873 | E38: 2062.251245 | F38: 2912.917117 | G38: 3395 | H38: 2277 | I38: 3216 | J38: 319.683127 | K38: 214.748755 | L38: 303.082883
B39: Edmonds Vocational | C39: Vocational | D39: 1727.697951 | E39: 690.319267 | F39: 1077.105499 | G39: 1907 | H39: 762 | I39: 1189 | J39: 179.302049 | K39: 71.680733 | L39: 111.894501
B40: Edmonds Basic Skills/Dev Ed | C40: Basic Skills/Dev Ed | D40: 1425.511795 | E40: 1093.725484 | F40: 1143.958774 | G40: 1574 | H40: 1208 | I40: 1263 | J40: 148.488205 | K40: 114.274516 | L40: 119.041226
B41: Everett Academic | C41: Academic | D41: 3990.195467 | E41: 2461.783912 | F41: 3335.982992 | G41: 4412 | H41: 2722 | I41: 3689 | J41: 421.804533 | K41: 260.216088 | L41: 353.017008
B42: Everett Vocational | C42: Vocational | D42: 1686.185039 | E42: 724.059338 | F42: 1076.932317 | G42: 1865 | H42: 801 | I42: 1191 | J42: 178.814961 | K42: 76.940662 | L42: 114.067683
B43: Everett Basic Skills/Dev Ed | C43: Basic Skills/Dev Ed | D43: 1035.26564 | E43: 612.53273 | F43: 675.199334 | G43: 1145 | H43: 677 | I43: 747 | J43: 109.73436 | K43: 64.46727 | L43: 71.800666
B44: Grays Harbor Academic | C44: Academic | D44: 834.1857 | E44: 541.979366 | F44: 789.445784 | G44: 855 | H44: 556 | I44: 809 | J44: 20.8143 | K44: 14.020634 | L44: 19.554216
B45: Grays Harbor Vocational | C45: Vocational | D45: 485.579485 | E45: 309.633105 | F45: 352.899727 | G45: 498 | H45: 318 | I45: 362 | J45: 12.420515 | K45: 8.366895 | L45: 9.100273
B46: Grays Harbor Basic Skills/Dev Ed | C46: Basic Skills/Dev Ed | D46: 319.092949 | E46: 157.093122 | F46: 229.093048 | G46: 327 | H46: 161 | I46: 235 | J46: 7.907051 | K46: 3.906878 | L46: 5.906952
B47: Green River Academic | C47: Academic | D47: 5053.454981 | E47: 3561.19644 | F47: 4505.528841 | G47: 5451 | H47: 3841 | I47: 4860 | J47: 397.545019 | K47: 279.80356 | L47: 354.471159
B48: Green River Vocational | C48: Vocational | D48: 1710.764798 | E48: 748.199171 | F48: 1226.865361 | G48: 1845 | H48: 807 | I48: 1323 | J48: 134.235202 | K48: 58.800829 | L48: 96.134639
B49: Green River Basic Skills/Dev Ed | C49: Basic Skills/Dev Ed | D49: 1565.832563 | E49: 746.06617 | F49: 758.532825 | G49: 1689 | H49: 805 | I49: 818 | J49: 123.167437 | K49: 58.93383 | L49: 59.467175
B50: Highline Academic | C50: Academic | D50: 3227.856505 | E50: 2202.657558 | F50: 2943.456828 | G50: 3479 | H50: 2374 | I50: 3172 | J50: 251.143495 | K50: 171.342442 | L50: 228.543172
B51: Highline Vocational | C51: Vocational | D51: 1386.285127 | E51: 762.092505 | F51: 1105.825454 | G51: 1494 | H51: 821 | I51: 1192 | J51: 107.714873 | K51: 58.907495 | L51: 86.174546
B52: Highline Basic Skills/Dev Ed | C52: Basic Skills/Dev Ed | D52: 2115.737724 | E52: 1076.525636 | F52: 1133.058916 | G52: 2280 | H52: 1160 | I52: 1221 | J52: 164.262276 | K52: 83.474364 | L52: 87.941084
B53: Lake Washington Academic | C53: Academic | D53: 934.279111 | E53: 591.759428 | F53: 772.425914 | G53: 1009 | H53: 639 | I53: 834 | J53: 74.720889 | K53: 47.240572 | L53: 61.574086
B54: Lake Washington Vocational | C54: Vocational | D54: 1465.344772 | E54: 1152.278468 | F54: 1222.411709 | G54: 1582 | H54: 1244 | I54: 1320 | J54: 116.655228 | K54: 91.721532 | L54: 97.588291
B55: Lake Washington Basic Skills/Dev Ed | C55: Basic Skills/Dev Ed | D55: 691.479653 | E55: 489.172998 | F55: 503.972998 | G55: 747 | H55: 528 | I55: 544 | J55: 55.520347 | K55: 38.827002 | L55: 40.027002
B56: Lower Columbia Academic | C56: Academic | D56: 1461.011725 | E56: 780.652437 | F56: 1369.771815 | G56: 1453 | H56: 776 | I56: 1362 | J56: -8.011725 | K56: -4.652437 | L56: -7.771815
B57: Lower Columbia Vocational | C57: Vocational | D57: 550.592724 | E57: 285.25967 | F57: 360.132922 | G57: 548 | H57: 284 | I57: 358 | J57: -2.592724 | K57: -1.25967 | L57: -2.132922
B58: Lower Columbia Basic Skills/Dev Ed | C58: Basic Skills/Dev Ed | D58: 830.51907 | E58: 496.31284 | F58: 599.045948 | G58: 826 | H58: 494 | I58: 596 | J58: -4.51907 | K58: -2.31284 | L58: -3.045948
B59: Olympic Academic | C59: Academic | D59: 2919.370364 | E59: 1642.838385 | F59: 2336.637691 | G59: 3114 | H59: 1752 | I59: 2492 | J59: 194.629636 | K59: 109.161615 | L59: 155.362309
B60: Olympic Vocational | C60: Vocational | D60: 1588.850875 | E60: 566.519188 | F60: 864.358739 | G60: 1695 | H60: 604 | I60: 922 | J60: 106.149125 | K60: 37.480812 | L60: 57.641261
B61: Olympic Basic Skills/Dev Ed | C61: Basic Skills/Dev Ed | D61: 589.072621 | E61: 343.47296 | F61: 343.47296 | G61: 628 | H61: 366 | I61: 366 | J61: 38.927379 | K61: 22.52704 | L61: 22.52704
B62: Peninsula Academic | C62: Academic | D62: 798.879092 | E62: 485.732799 | F62: 748.732519 | G62: 847 | H62: 515 | I62: 794 | J62: 48.120908 | K62: 29.267201 | L62: 45.267481
B63: Peninsula Vocational | C63: Vocational | D63: 548.686104 | E63: 213.766519 | F63: 440.366263 | G63: 582 | H63: 227 | I63: 467 | J63: 33.313896 | K63: 13.233481 | L63: 26.633737
B64: Peninsula Basic Skills/Dev Ed | C64: Basic Skills/Dev Ed | D64: 261.006379 | E64: 127.059879 | F64: 148.059858 | G64: 277 | H64: 135 | I64: 157 | J64: 15.993621 | K64: 7.940121 | L64: 8.940142
B65: Pierce Ft Steilacoom Academic | C65: Academic | D65: 3125.423618 | E65: 1399.185331 | F65: 2839.983846 | G65: 3405 | H65: 1524 | I65: 3094 | J65: 279.576382 | K65: 124.814669 | L65: 254.016154
B66: Pierce Ft Steilacoom Vocational | C66: Vocational | D66: 799.992421 | E66: 282.15293 | F66: 671.08585 | G66: 871 | H66: 307 | I66: 731 | J66: 71.007579 | K66: 24.84707 | L66: 59.91415
B67: Pierce Ft Steilacoom Basic Skills/Dev Ed | C67: Basic Skills/Dev Ed | D67: 455.306004 | E67: 229.23965 | F67: 306.772892 | G67: 496 | H67: 250 | I67: 334 | J67: 40.693996 | K67: 20.76035 | L67: 27.227108
B68: Pierce Puyallup Academic | C68: Academic | D68: 2701.357467 | E68: 2100.664674 | F68: 2235.997881 | G68: 3003 | H68: 2335 | I68: 2486 | J68: 301.642533 | K68: 234.335326 | L68: 250.002119
B69: Pierce Puyallup Vocational | C69: Vocational | D69: 226.012883 | E69: 120.413031 | F69: 136.413015 | G69: 251 | H69: 134 | I69: 151 | J69: 24.987117 | K69: 13.586969 | L69: 14.586985
B70: Pierce Puyallup Basic Skills/Dev Ed | C70: Basic Skills/Dev Ed | D70: 374.346036 | E70: 260.8396 | F70: 268.172926 | G70: 416 | H70: 290 | I70: 298 | J70: 41.653964 | K70: 29.1604 | L70: 29.827074
B71: Renton Academic | C71: Academic | D71: 435.999564 | E71: 205.333128 | F71: 408.332925 | G71: 467 | H71: 220 | I71: 437 | J71: 31.000436 | K71: 14.666872 | L71: 28.667075
B72: Renton Vocational | C72: Vocational | D72: 1883.704774 | E72: 1092.438938 | F72: 1174.105483 | G72: 2019 | H72: 1171 | I72: 1258 | J72: 135.295226 | K72: 78.561062 | L72: 83.894517
B73: Renton Basic Skills/Dev Ed | C73: Basic Skills/Dev Ed | D73: 1227.605465 | E73: 235.193118 | F73: 334.232895 | G73: 1316 | H73: 252 | I73: 358 | J73: 88.394535 | K73: 16.806882 | L73: 23.767105
B74: Seattle Central Academic | C74: Academic | D74: 2943.963559 | E74: 2098.3644 | F74: 2581.363917 | G74: 3154 | H74: 2248 | I74: 2766 | J74: 210.036441 | K74: 149.6356 | L74: 184.636083
B75: Seattle Central Vocational | C75: Vocational | D75: 1924.710459 | E75: 1331.524603 | F75: 1427.057841 | G75: 2062 | H75: 1427 | I75: 1529 | J75: 137.289541 | K75: 95.475397 | L75: 101.942159
B76: Seattle Central Basic Skills/Dev Ed | C76: Basic Skills/Dev Ed | D76: 1262.938639 | E76: 892.572365 | F76: 903.839015 | G76: 1353 | H76: 956 | I76: 968 | J76: 90.061361 | K76: 63.427635 | L76: 64.160985
B77: Seattle North Academic | C77: Academic | D77: 1908.46473 | E77: 1215.798795 | F77: 1636.931709 | G77: 2049 | H77: 1305 | I77: 1757 | J77: 140.53527 | K77: 89.201205 | L77: 120.068291
B78: Seattle North Vocational | C78: Vocational | D78: 1147.765537 | E78: 347.026369 | F78: 595.772812 | G78: 1232 | H78: 372 | I78: 639 | J78: 84.234463 | K78: 24.973631 | L78: 43.227188
B79: Seattle North Basic Skills/Dev Ed | C79: Basic Skills/Dev Ed | D79: 766.265839 | E79: 494.172785 | F79: 530.706079 | G79: 823 | H79: 531 | I79: 570 | J79: 56.734161 | K79: 36.827215 | L79: 39.293921
B80: Seattle South Academic | C80: Academic | D80: 1601.151711 | E80: 1149.938839 | F80: 1502.738482 | G80: 1712 | H80: 1230 | I80: 1607 | J80: 110.848289 | K80: 80.061161 | L80: 104.261518
B81: Seattle South Vocational | C81: Vocational | D81: 2147.904645 | E81: 618.23298 | F81: 679.739592 | G81: 2297 | H81: 661 | I81: 727 | J81: 149.095355 | K81: 42.76702 | L81: 47.260408
B82: Seattle South Basic Skills/Dev Ed | C82: Basic Skills/Dev Ed | D82: 804.372809 | E82: 496.732927 | F82: 507.06625 | G82: 860 | H82: 531 | I82: 542 | J82: 55.627191 | K82: 34.267073 | L82: 34.93375
B83: Shoreline Academic | C83: Academic | D83: 2855.610109 | E83: 1975.411022 | F83: 2749.14356 | G83: 3084 | H83: 2133 | I83: 2969 | J83: 228.389891 | K83: 157.588978 | L83: 219.85644
B84: Shoreline Vocational | C84: Vocational | D84: 1166.858749 | E84: 631.599335 | F84: 887.865697 | G84: 1260 | H84: 682 | I84: 959 | J84: 93.141251 | K84: 50.400665 | L84: 71.134303
B85: Shoreline Basic Skills/Dev Ed | C85: Basic Skills/Dev Ed | D85: 795.505662 | E85: 641.625858 | F85: 683.692479 | G85: 859 | H85: 693 | I85: 738 | J85: 63.494338 | K85: 51.374142 | L85: 54.307521
B86: Skagit Valley Academic | C86: Academic | D86: 1988.230635 | E86: 1018.038704 | F86: 1645.904549 | G86: 2136 | H86: 1094 | I86: 1768 | J86: 147.769365 | K86: 75.961296 | L86: 122.095451
B87: Skagit Valley Vocational | C87: Vocational | D87: 1449.118607 | E87: 568.692804 | F87: 758.559276 | G87: 1557 | H87: 611 | I87: 815 | J87: 107.881393 | K87: 42.307196 | L87: 56.440724
B88: Skagit Valley Basic Skills/Dev Ed | C88: Basic Skills/Dev Ed | D88: 598.479285 | E88: 344.679592 | F88: 354.679582 | G88: 643 | H88: 370 | I88: 381 | J88: 44.520715 | K88: 25.320408 | L88: 26.320418
B89: South Puget Sound Academic | C89: Academic | D89: 2872.123891 | E89: 1722.724987 | F89: 2530.057571 | G89: 3204 | H89: 1922 | I89: 2822 | J89: 331.876109 | K89: 199.275013 | L89: 291.942429
B90: South Puget Sound Vocational | C90: Vocational | D90: 925.758986 | E90: 462.426184 | F90: 670.092584 | G90: 1033 | H90: 516 | I90: 748 | J90: 107.241014 | K90: 53.573816 | L90: 77.907416
B91: South Puget Sound Basic Skills/Dev Ed | C91: Basic Skills/Dev Ed | D91: 485.559331 | E91: 223.319755 | F91: 293.519563 | G91: 542 | H91: 249 | I91: 328 | J91: 56.440669 | K91: 25.680245 | L91: 34.480437
B92: Spokane Academic | C92: Academic | D92: 2310.719 | E92: 1171.759 | F92: 1998.928 | G92: 2410 | H92: 1222 | I92: 2085 | J92: 99.281 | K92: 50.241 | L92: 86.072
B93: Spokane Vocational | C93: Vocational | D93: 3837.456 | E93: 2650.686 | F93: 3115.755 | G93: 4003 | H93: 2765 | I93: 3250 | J93: 165.544 | K93: 114.314 | L93: 134.245
B94: Spokane Basic Skills/Dev Ed | C94: Basic Skills/Dev Ed | D94: 1622.558 | E94: 790.209 | F94: 932.577 | G94: 1693 | H94: 825 | I94: 973 | J94: 70.442 | K94: 34.791 | L94: 40.423
B95: Spokane Falls Academic | C95: Academic | D95: 3113.51 | E95: 2168.669 | F95: 3057.018 | G95: 3195 | H95: 2225 | I95: 3137 | J95: 81.49 | K95: 56.331 | L95: 79.982
B96: Spokane Falls Vocational | C96: Vocational | D96: 925.523 | E96: 546.201 | F96: 877.568 | G96: 950 | H96: 561 | I96: 901 | J96: 24.477 | K96: 14.799 | L96: 23.432
B97: Spokane Falls Basic Skills/Dev Ed | C97: Basic Skills/Dev Ed | D97: 266.198 | E97: 229.901 | F97: 258.872 | G97: 273 | H97: 236 | I97: 265 | J97: 6.802 | K97: 6.099 | L97: 6.128
B98: Tacoma Academic | C98: Academic | D98: 3470.919 | E98: 2537.458 | F98: 3218.373 | G98: 3734 | H98: 2730 | I98: 3462 | J98: 263.081 | K98: 192.542 | L98: 243.627
B99: Tacoma Vocational | C99: Vocational | D99: 873.446 | E99: 552.319 | F99: 750.373 | G99: 940 | H99: 594 | I99: 808 | J99: 66.554 | K99: 41.681 | L99: 57.627
B100: Tacoma Basic Skills/Dev Ed | C100: Basic Skills/Dev Ed | D100: 843.954 | E100: 661.906 | F100: 699.535 | G100: 908 | H100: 712 | I100: 753 | J100: 64.046 | K100: 50.094 | L100: 53.465
B101: Walla Walla Academic | C101: Academic | D101: 1108.825324 | E101: 731.552566 | F101: 966.818844 | G101: 1147 | H101: 757 | I101: 1000 | J101: 38.174676 | K101: 25.447434 | L101: 33.181156
B102: Walla Walla Vocational | C102: Vocational | D102: 1156.878449 | E102: 718.385839 | F102: 894.132323 | G102: 1197 | H102: 743 | I102: 925 | J102: 40.121551 | K102: 24.614161 | L102: 30.867677
B103: Walla Walla Basic Skills/Dev Ed | C103: Basic Skills/Dev Ed | D103: 299.199708 | E103: 175.433151 | F103: 196.233132 | G103: 309 | H103: 181 | I103: 203 | J103: 9.800292 | K103: 5.566849 | L103: 6.766868
B104: Wenatchee Valley Academic | C104: Academic | D104: 1783.33133 | E104: 1147.265344 | F104: 1534.464963 | G104: 1889 | H104: 1215 | I104: 1625 | J104: 105.66867 | K104: 67.734656 | L104: 90.535037
B105: Wenatchee Valley Vocational | C105: Vocational | D105: 980.445815 | E105: 509.699425 | F105: 561.69935 | G105: 1039 | H105: 540 | I105: 595 | J105: 58.554185 | K105: 30.300575 | L105: 33.30065
B106: Wenatchee Valley Basic Skills/Dev Ed | C106: Basic Skills/Dev Ed | D106: 348.086302 | E106: 189.73315 | F106: 203.733136 | G106: 369 | H106: 201 | I106: 216 | J106: 20.913698 | K106: 11.26685 | L106: 12.266864
B107: Whatcom Academic | C107: Academic | D107: 2600.450533 | E107: 1929.717883 | F107: 2433.517378 | G107: 2819 | H107: 2092 | I107: 2638 | J107: 218.549467 | K107: 162.282117 | L107: 204.482622
B108: Whatcom Vocational | C108: Vocational | D108: 652.746029 | E108: 393.346283 | F108: 498.146174 | G108: 708 | H108: 427 | I108: 540 | J108: 55.253971 | K108: 33.653717 | L108: 41.853826
B109: Whatcom Basic Skills/Dev Ed | C109: Basic Skills/Dev Ed | D109: 391.986207 | E109: 254.586341 | F109: 282.919646 | G109: 425 | H109: 276 | I109: 307 | J109: 33.013793 | K109: 21.413659 | L109: 24.080354
B110: Yakima Valley Academic | C110: Academic | D110: 2191.19776 | E110: 1392.59856 | F110: 1830.931455 | G110: 2436 | H110: 1548 | I110: 2035 | J110: 244.80224 | K110: 155.40144 | L110: 204.068545
B111: Yakima Valley Vocational | C111: Vocational | D111: 1168.151984 | E111: 556.125994 | F111: 891.99228 | G111: 1299 | H111: 618 | I111: 992 | J111: 130.848016 | K111: 61.874006 | L111: 100.00772
B112: Yakima Valley Basic Skills/Dev Ed | C112: Basic Skills/Dev Ed | D112: 1163.691799 | E112: 635.099115 | F112: 671.099061 | G112: 1294 | H112: 706 | I112: 746 | J112: 130.308201 | K112: 70.900885 | L112: 74.900939

Sheet College Name Lookup
A1: COL | B1: TITLE | D1: COL | E1: TITLE | F1: TYPE
A2: 010 | B2: Peninsula | D2: 280 | E2: Bates | F2: Technical College
A3: 020 | B3: Grays Harbor | D3: 080 | E3: Bellevue | F3: Community College
A4: 030 | B4: Olympic | D4: 250 | E4: Bellingham | F4: Technical College
A5: 040 | B5: Skagit Valley | D5: 180 | E5: Big Bend | F5: Community College
A6: 050 | B6: Everett | D6: 300 | E6: Cascadia | F6: Community College
A7: 062 | B7: Seattle Central | D7: 121 | E7: Centralia | F7: Community College
A8: 063 | B8: Seattle North | D8: 140 | E8: Clark | F8: Community College
A9: 064 | B9: Seattle South | D9: 290 | E9: Clover Park | F9: Technical College
A10: 065 | B10: Seattle Voc Institute | D10: 190 | E10: Columbia Basin | F10: Community College
A11: 070 | B11: Shoreline | D11: 230 | E11: Edmonds | F11: Community College
A12: 080 | B12: Bellevue | D12: 050 | E12: Everett | F12: Community College
A13: 090 | B13: Highline | D13: 020 | E13: Grays Harbor | F13: Community College
A14: 100 | B14: Green River | D14: 100 | E14: Green River | F14: Community College
A15: 111 | B15: Pierce Fort Steilacoom | D15: 090 | E15: Highline | F15: Community College
A16: 112 | B16: Pierce Puyallup | D16: 260 | E16: Lake Washington | F16: Technical College
A17: 121 | B17: Centralia | D17: 130 | E17: Lower Columbia | F17: Community College
A18: 130 | B18: Lower Columbia | D18: 030 | E18: Olympic | F18: Community College
A19: 140 | B19: Clark | D19: 010 | E19: Peninsula | F19: Community College
A20: 150 | B20: Wenatchee Valley | D20: 111 | E20: Pierce Fort Steilacoom | F20: Community College
A21: 160 | B21: Yakima Valley | D21: 112 | E21: Pierce Puyallup | F21: Community College
A22: 171 | B22: Spokane | D22: 270 | E22: Renton | F22: Technical College
A23: 172 | B23: Spokane Falls | D23: 062 | E23: Seattle Central | F23: Community College
A24: 180 | B24: Big Bend | D24: 063 | E24: Seattle North | F24: Community College
A25: 190 | B25: Columbia Basin | D25: 064 | E25: Seattle South | F25: Community College
A26: 200 | B26: Walla Walla | D26: 065 | E26: Seattle Voc Institute | F26: Technical College
A27: 210 | B27: Whatcom | D27: 070 | E27: Shoreline | F27: Community College
A28: 220 | B28: Tacoma | D28: 040 | E28: Skagit Valley | F28: Community College
A29: 230 | B29: Edmonds | D29: 240 | E29: South Puget Sound | F29: Community College
A30: 240 | B30: South Puget Sound | D30: 171 | E30: Spokane | F30: Community College
A31: 250 | B31: Bellingham | D31: 172 | E31: Spokane Falls | F31: Community College
A32: 260 | B32: Lake Washington | D32: 220 | E32: Tacoma | F32: Community College
A33: 270 | B33: Renton | D33: 200 | E33: Walla Walla | F33: Community College
A34: 280 | B34: Bates | D34: 150 | E34: Wenatchee Valley | F34: Community College
A35: 290 | B35: Clover Park | D35: 210 | E35: Whatcom | F35: Community College
A36: 300 | B36: Cascadia | D36: 160 | E36: Yakima Valley | F36: Community College
